bitfinex-derivatives/quotes_BTCF0:USTF0_20250129
["timestamp","ask_amount","ask_price","bid_price","bid_amount"]
[1738163264661,0.00514684,102350.0,102340.0,0.69389905]
[1738163265063,0.00014684,102350.0,102340.0,0.69389905]
[1738163265263,0.00014684,102350.0,102340.0,0.69489905]
[1738163269064,0.00014684,102350.0,102340.0,1.95489905]
[1738163272167,0.00014684,102350.0,102340.0,1.96456714]
[1738163272766,0.83670683,102370.0,102360.0,0.195457]
[1738163273371,0.83670683,102370.0,102360.0,1.455457]
[1738163273763,0.77886988,102370.0,102340.0,0.42033809]
[1738163273968,0.74272605,102360.0,102350.0,0.00014684]
[1738163274276,1.10352605,102360.0,102350.0,0.00014684]
[1738163274570,1.10352605,102360.0,102350.0,0.21064545]
[1738163274571,1.05466105,102360.0,102350.0,0.21064545]
[1738163274768,1.12554105,102360.0,102350.0,0.21064545]
[1738163274965,0.987937,102360.0,102350.0,0.21064545]
[1738163275268,0.002,102370.0,102360.0,0.195457]
[1738163275469,0.002,102370.0,102360.0,0.34808366]
[1738163275663,0.3628,102370.0,102360.0,0.21047961]
[1738163275862,0.3628,102370.0,102360.0,1.47047961]
[1738163276063,0.3628,102370.0,102360.0,1.60808366]
[1738163276272,0.3628,102370.0,102360.0,1.47047961]
[1738163276563,0.47916153,102370.0,102360.0,1.47047961]
[1738163276868,0.67459953,102370.0,102360.0,0.21047961]
[1738163277061,0.11836153,102370.0,102360.0,0.21047961]
[1738163277263,0.11636153,102370.0,102360.0,0.21047961]
[1738163277474,0.47916153,102370.0,102360.0,0.21047961]
[1738163277664,0.67459953,102370.0,102360.0,0.21047961]
[1738163277863,0.11836153,102370.0,102360.0,0.21047961]
[1738163278158,0.67959953,102370.0,102360.0,0.21047961]
[1738163278369,0.81720358,102370.0,102360.0,0.21047961]
[1738163278570,0.81720358,102370.0,102360.0,0.195457]
[1738163278970,0.195457,102360.0,102350.0,0.19561984]
[1738163279272,0.698057,102360.0,102350.0,0.19561984]
[1738163279474,0.83566105,102360.0,102350.0,0.19561984]
[1738163279669,0.83566105,102360.0,102350.0,1.45561984]
[1738163280065,0.83566105,102360.0,102350.0,0.19561984]
[1738163280466,0.83766105,102360.0,102350.0,1.26014684]
[1738163280667,0.83766105,102360.0,102350.0,0.19562284]
[1738163280668,0.700057,102360.0,102350.0,0.19562284]
[1738163281175,0.83766105,102360.0,102350.0,1.45562284]
[1738163281472,0.83766105,102360.0,102350.0,0.00014684]
[1738163281974,0.83766105,102360.0,102350.0,0.19562284]
[1738163282168,0.83766105,102360.0,102350.0,0.00014684]
[1738163283371,0.195495,102340.0,102330.0,0.60108402]
[1738163283569,0.556295,102340.0,102330.0,0.60108402]
[1738163283877,0.917095,102340.0,102330.0,0.60108402]
[1738163285076,0.917095,102340.0,102330.0,0.60508402]
[1738163286780,1.05469905,102340.0,102330.0,0.41157902]
[1738163286980,0.33740117,102350.0,102340.0,0.195495]
[1738163286981,0.37083217,102350.0,102340.0,0.195495]
[1738163287176,0.68094105,102350.0,102340.0,0.195495]
[1738163287377,0.68094105,102350.0,102340.0,0.46689905]
[1738163289385,0.87641705,102350.0,102340.0,0.329295]
[1738163289690,0.55642284,102350.0,102340.0,1.456495]
[1738163290480,0.55642284,102350.0,102340.0,1.457495]
[1738163290987,0.36094684,102350.0,102340.0,1.457495]
[1738163291195,0.36094684,102350.0,102340.0,1.59509905]
[1738163291577,0.00014684,102350.0,102340.0,1.95589905]
[1738163292284,0.00014684,102350.0,102340.0,1.99587949]
[1738163292476,0.00014684,102350.0,102340.0,1.95589905]
[1738163293486,0.08782632,102350.0,102340.0,1.95589905]
[1738163294486,0.08782632,102350.0,102340.0,1.457495]
[1738163294791,0.28330232,102350.0,102340.0,1.457495]
[1738163294980,0.08782632,102350.0,102340.0,1.457495]
[1738163295381,0.08782632,102350.0,102340.0,1.46735589]
[1738163295587,0.28330232,102350.0,102340.0,1.46735589]
[1738163297082,0.64410232,102350.0,102340.0,1.46735589]
[1738163297393,0.69402689,102350.0,102340.0,1.457495]
[1738163297583,0.82992689,102350.0,102340.0,1.457495]
[1738163297783,0.69232284,102350.0,102340.0,1.457495]
[1738163298382,0.69232284,102350.0,102340.0,0.197495]
[1738163298578,0.55642284,102350.0,102340.0,0.33509905]
[1738163298799,0.00014684,102350.0,102340.0,1.59509905]
[1738163301096,0.00014684,102350.0,102340.0,2.12959222]
[1738163301298,0.08767948,102360.0,102350.0,0.195476]
[1738163301500,0.08767948,102360.0,102350.0,0.60768005]
[1738163301988,0.08767948,102360.0,102350.0,1.730076]
[1738163302189,0.08767948,102360.0,102350.0,1.86768005]
[1738163302499,0.08967948,102360.0,102350.0,1.86768005]
[1738163305202,0.09067948,102360.0,102350.0,1.730076]
[1738163305800,0.003,102360.0,102350.0,1.90376917]
[1738163307100,0.003,102360.0,102350.0,2.04137322]
[1738163307691,0.003,102360.0,102350.0,1.90376917]
[1738163307895,0.559257,102360.0,102350.0,1.90376917]
[1738163308586,0.3638,102360.0,102350.0,1.90376917]
[1738163308801,0.003,102360.0,102350.0,1.99544601]
[1738163309300,0.003,102360.0,102350.0,2.0054001]
[1738163309500,0.3638,102360.0,102350.0,1.91372326]
[1738163309890,0.3638,102360.0,102350.0,2.0054001]
[1738163309891,0.003,102360.0,102350.0,2.0054001]
[1738163310091,0.3638,102360.0,102350.0,2.0054001]
[1738163310287,3.2e-07,102370.0,102350.0,1.66320094]
[1738163310603,0.26235789,102380.0,102370.0,0.195438]
[1738163310604,2.1e-07,102380.0,102370.0,0.195438]
[1738163310805,2.1e-07,102380.0,102370.0,1.99060495]
[1738163311200,2.1e-07,102380.0,102370.0,1.94785442]
[1738163311393,2.1e-07,102380.0,102370.0,1.90791484]
[1738163312297,0.1745423,102390.0,102370.0,1.71247684]
[1738163312498,0.1745423,102390.0,102380.0,0.91889584]
[1738163313702,0.1765423,102390.0,102380.0,0.91889584]
[1738163314307,0.1745423,102390.0,102380.0,0.91889584]
[1738163314603,0.1765423,102390.0,102380.0,0.9646399]
[1738163316310,0.1765423,102390.0,102380.0,0.8332399]
[1738163316602,0.5582,102390.0,102380.0,0.36911217]
[1738163318803,0.5582,102390.0,102380.0,0.17369317]
[1738163319507,0.6956209,102390.0,102380.0,0.17369317]
[1738163320608,0.6956209,102390.0,102360.0,1.86117686]
[1738163320609,0.5490709,102390.0,102360.0,1.86117686]
[1738163320809,0.556238,102370.0,102360.0,1.86117686]
[1738163321003,0.195438,102370.0,102360.0,1.86117686]
[1738163321199,0.1415,102380.0,102370.0,0.195438]
[1738163321403,0.558203,102390.0,102370.0,0.1374209]
[1738163321604,0.558203,102390.0,102380.0,0.3328399]
[1738163322006,0.556203,102390.0,102380.0,0.195419]
[1738163324907,0.559203,102390.0,102380.0,0.195419]
[1738163325297,0.5012209,102390.0,102360.0,1.63002716]
[1738163325500,0.556224,102380.0,102370.0,0.195424]
[1738163327611,0.556224,102380.0,102370.0,0.196424]
[1738163329512,0.6936449,102380.0,102370.0,0.01600858]
[1738163330119,0.561224,102380.0,102370.0,0.01500858]
[1738163330314,0.562224,102380.0,102370.0,0.01500858]
[1738163330510,0.57191327,102380.0,102370.0,0.01500858]
[1738163330817,0.57191327,102380.0,102370.0,0.21044658]
[1738163331004,0.562224,102380.0,102370.0,0.21044658]
[1738163331204,0.557224,102380.0,102370.0,0.21044658]
[1738163331403,0.562224,102380.0,102370.0,0.21044658]
[1738163331613,0.562224,102380.0,102370.0,0.21056459]
[1738163332214,0.563224,102380.0,102370.0,0.21056459]
[1738163332909,0.561224,102380.0,102370.0,0.21056459]
[1738163333114,0.563224,102380.0,102370.0,0.21057352]
[1738163333711,0.558224,102380.0,102370.0,0.21057352]
[1738163333911,0.560224,102380.0,102370.0,0.21057352]
[1738163334415,0.002,102380.0,102370.0,0.70879442]
[1738163334614,0.007,102380.0,102370.0,0.66299529]
[1738163334808,0.007,102380.0,102370.0,0.93279529]
[1738163335013,0.007,102380.0,102370.0,2.19279529]
[1738163335417,0.2745423,102400.0,102370.0,1.99735729]
[1738163335722,0.2745423,102400.0,102390.0,0.28702177]
[1738163336023,0.2745423,102400.0,102390.0,0.30215729]
[1738163336618,0.8307223,102400.0,102390.0,0.21053552]
[1738163336825,0.4719223,102400.0,102390.0,0.21053552]
[1738163337118,0.4769223,102400.0,102390.0,0.30215729]
[1738163337626,0.4719223,102400.0,102390.0,0.30215729]
[1738163337920,0.8377223,102400.0,102390.0,0.21046516]
[1738163338509,0.8377223,102400.0,102390.0,0.1954]
[1738163339115,0.8357223,102400.0,102390.0,0.1954]
[1738163339319,0.66118,102400.0,102390.0,0.1954]
[1738163340320,0.1954,102390.0,102380.0,0.60113286]
[1738163340524,0.64782177,102390.0,102380.0,0.60113286]
[1738163340822,0.5562,102390.0,102380.0,0.60113286]
[1738163342324,0.73944354,102390.0,102380.0,0.40572586]
[1738163342619,0.87244354,102390.0,102380.0,0.40572586]
[1738163342925,0.195419,102380.0,102370.0,0.28948862]
[1738163343121,0.92684077,102380.0,102370.0,0.28948862]
[1738163344521,0.97569577,102380.0,102370.0,0.23263603]
[1738163345818,0.195438,102370.0,102360.0,0.28963546]
[1738163346013,0.81012154,102370.0,102360.0,0.28963546]
[1738163346416,0.71849977,102370.0,102360.0,0.28963546]
[1738163348021,0.81012154,102370.0,102360.0,0.28963546]
[1738163348526,0.81112154,102370.0,102360.0,0.28963546]
[1738163349318,1.131733,102370.0,102360.0,0.00014684]
[1738163349521,1.04011123,102370.0,102360.0,0.00014684]
[1738163349926,1.131733,102370.0,102360.0,0.00014684]
[1738163350728,1.04011123,102370.0,102360.0,0.00014684]
[1738163351931,1.131733,102370.0,102360.0,0.00014684]
[1738163352725,0.96947123,102370.0,102360.0,0.00014684]
[1738163352926,1.04007123,102370.0,102360.0,0.00014684]
[1738163353328,0.79492893,102370.0,102360.0,0.00014684]
[1738163353529,0.86552893,102370.0,102360.0,0.01523764]
[1738163354131,0.86552893,102370.0,102360.0,1.27523764]
[1738163354332,0.9571507,102370.0,102360.0,0.01523764]
[1738163354532,0.9571507,102370.0,102360.0,0.00014684]
[1738163355434,0.86552893,102370.0,102360.0,0.00014684]
[1738163355929,0.9571507,102370.0,102360.0,0.00014684]
[1738163356131,0.86552893,102370.0,102360.0,0.00014684]
[1738163356335,0.9571507,102370.0,102360.0,0.00014684]
[1738163356631,0.9571507,102370.0,102340.0,1.26146515]
[1738163356632,0.195476,102350.0,102340.0,0.00146515]
[1738163356839,1.00869777,102350.0,102340.0,0.00146515]
[1738163357135,1.29269777,102350.0,102340.0,0.00146515]
[1738163357533,1.09722177,102350.0,102340.0,0.01501554]
[1738163357736,1.34156677,102350.0,102340.0,0.01501554]
[1738163357937,0.556276,102350.0,102340.0,0.21051054]
[1738163358233,0.00014684,102360.0,102350.0,0.195476]
[1738163358427,0.00014684,102360.0,102350.0,0.57981331]
[1738163358627,0.005,102370.0,102360.0,0.195457]
[1738163358832,0.14606916,102380.0,102370.0,0.195438]
[1738163360033,0.23769093,102380.0,102370.0,0.195438]
[1738163360235,0.79390993,102380.0,102370.0,0.195438]
[1738163360440,0.79790993,102380.0,102370.0,0.195438]
[1738163360841,0.43710993,102380.0,102370.0,0.195438]
[1738163361338,0.43810993,102380.0,102370.0,1.455438]
[1738163361642,0.29204077,102380.0,102370.0,1.455438]
[1738163361832,0.200419,102380.0,102370.0,1.455438]
[1738163362026,0.005,102380.0,102370.0,1.90785977]
[1738163362342,0.70242,102390.0,102380.0,0.195419]
[1738163362343,0.507016,102390.0,102380.0,0.195419]
[1738163362540,0.507016,102390.0,102380.0,0.56964077]
[1738163362941,0.146216,102390.0,102380.0,1.82964077]
[1738163363633,0.146216,102390.0,102380.0,1.84462481]
[1738163364139,0.348615,102390.0,102380.0,1.75400304]
[1738163364337,0.348615,102390.0,102380.0,0.49400304]
[1738163364538,0.65496761,102390.0,102380.0,0.49400304]
[1738163364736,0.64896761,102390.0,102380.0,0.478019]
[1738163364943,0.64896761,102390.0,102380.0,0.335719]
[1738163366339,0.195428,102380.0,102370.0,0.195432]
[1738163366537,0.64784977,102380.0,102370.0,0.195432]
[1738163367044,0.3608,102380.0,102370.0,0.195432]
[1738163367543,0.64897961,102390.0,102370.0,0.195422]
[1738163367734,0.64784077,102380.0,102370.0,0.21042058]
[1738163367939,0.64797761,102390.0,102380.0,0.195419]
[1738163368134,0.64797761,102390.0,102380.0,0.21041758]
[1738163369842,0.36094684,102390.0,102380.0,0.195419]
[1738163370438,0.00014684,102390.0,102380.0,0.195419]
[1738163370638,0.00014684,102390.0,102380.0,0.28704077]
[1738163371342,0.00014684,102390.0,102380.0,1.54704077]
[1738163371648,0.00014684,102390.0,102380.0,1.90784077]
[1738163371844,0.1,102400.0,102390.0,0.195399]
[1738163372048,0.1,102400.0,102390.0,0.56242077]
[1738163373839,0.103,102400.0,102390.0,0.56242077]
[1738163374742,0.29838,102400.0,102390.0,0.470799]
[1738163374940,0.65918,102400.0,102390.0,0.470799]
[1738163375146,0.75080177,102400.0,102390.0,0.470799]
[1738163375743,0.75080177,102400.0,102390.0,0.48580711]
[1738163376044,0.75080177,102400.0,102390.0,0.34320711]
[1738163376245,0.87410177,102400.0,102390.0,0.34320711]
[1738163376450,0.87410177,102400.0,102390.0,0.01500811]
[1738163376634,0.99850177,102400.0,102390.0,0.01500811]
[1738163377543,0.195399,102390.0,102380.0,0.00014684]
[1738163377738,0.80988254,102390.0,102380.0,0.01525178]
[1738163378059,0.71826077,102390.0,102380.0,0.01525178]
[1738163378349,0.80988254,102390.0,102380.0,0.01525178]
[1738163380654,0.71826077,102390.0,102380.0,0.01525178]
[1738163380853,0.83490422,102390.0,102380.0,0.01525178]
[1738163381361,0.67284245,102390.0,102380.0,0.21065778]
[1738163381652,0.67284245,102390.0,102380.0,0.32456584]
[1738163381854,0.67284245,102390.0,102380.0,0.44756584]
[1738163382152,0.67284245,102390.0,102380.0,1.70756584]
[1738163382646,0.11664345,102390.0,102380.0,1.70756584]
[1738163382846,0.11664345,102390.0,102380.0,1.81419223]
[1738163383048,0.11664345,102390.0,102380.0,2.17499223]
[1738163383553,0.57744345,102400.0,102390.0,0.195399]
[1738163383945,0.86444522,102400.0,102390.0,0.195399]
[1738163385141,0.77282345,102400.0,102390.0,0.195399]
[1738163385543,0.21664345,102400.0,102390.0,0.195399]
[1738163385755,0.21664345,102400.0,102390.0,0.28702077]
[1738163386457,0.75080177,102400.0,102390.0,0.195399]
[1738163387861,0.65918,102400.0,102390.0,0.195399]
[1738163388360,0.65918,102400.0,102390.0,1.455399]
[1738163388553,0.75080177,102400.0,102390.0,1.455399]
[1738163388754,0.65918,102400.0,102390.0,1.455399]
[1738163388953,0.29838,102400.0,102390.0,0.195399]
[1738163389356,0.75080177,102400.0,102390.0,0.195399]
[1738163390755,0.195399,102390.0,102380.0,0.32456284]
[1738163390963,0.76222077,102390.0,102380.0,0.12914684]
[1738163391163,0.88682077,102390.0,102380.0,0.00014684]
[1738163391455,1.04880254,102390.0,102380.0,0.00014684]
[1738163393060,1.16544599,102390.0,102380.0,0.00014684]
[1738163394457,1.17837857,102390.0,102380.0,0.00014684]
[1738163394955,1.0867568,102390.0,102380.0,0.00014684]
[1738163395352,1.0877568,102390.0,102380.0,0.00014684]
[1738163395747,1.17937857,102390.0,102380.0,0.00014684]
[1738163396851,1.17937857,102390.0,102360.0,1.580446]
[1738163396852,1.04187842,102390.0,102360.0,1.580446]
[1738163397057,0.81322177,102370.0,102350.0,0.11736535]
[1738163397257,0.81322177,102370.0,102350.0,0.00146535]
[1738163397258,0.64787877,102360.0,102350.0,0.00146535]
[1738163397551,0.88107877,102360.0,102350.0,1.26146535]
[1738163397752,0.88107877,102360.0,102350.0,1.45694135]
[1738163398456,0.88107877,102360.0,102350.0,1.26]
[1738163398652,0.195476,102350.0,102340.0,0.30903684]
[1738163398852,0.64789777,102350.0,102340.0,0.30903684]
[1738163399049,0.64789777,102350.0,102340.0,1.56903684]
[1738163400353,0.64789777,102350.0,102340.0,1.37354684]
[1738163400554,0.64789777,102350.0,102340.0,0.00014684]
[1738163401261,0.64789777,102350.0,102340.0,1.26014684]
[1738163402570,0.64789777,102350.0,102340.0,0.00014684]
[1738163403564,0.64789777,102350.0,102340.0,0.19564184]
[1738163403958,0.64789777,102350.0,102340.0,0.00014684]
[1738163404670,0.64789777,102350.0,102340.0,0.19564184]
[1738163405570,0.556276,102350.0,102340.0,0.19564184]
[1738163406267,0.3608,102350.0,102340.0,0.28726361]
[1738163407657,0.3608,102350.0,102340.0,0.19564184]
[1738163408170,0.3608,102350.0,102340.0,0.19864184]
[1738163408366,0.3608,102350.0,102340.0,1.45964184]
[1738163408764,0.64788277,102360.0,102340.0,1.62494684]
[1738163408958,0.64788277,102360.0,102350.0,0.314776]
[1738163409162,0.67320706,102370.0,102350.0,0.21092177]
[1738163409468,0.31240706,102370.0,102360.0,0.310557]
[1738163409672,0.76482883,102370.0,102360.0,0.310557]
[1738163410864,0.195457,102360.0,102350.0,0.424669]
[1738163411066,0.64787877,102360.0,102350.0,0.1193]
[1738163412366,0.195476,102350.0,102340.0,0.00014684]
[1738163412571,0.86629777,102350.0,102340.0,0.00014684]
[1738163412970,0.86629777,102350.0,102340.0,0.19564184]
[1738163414971,0.86629777,102350.0,102340.0,0.19664184]
[1738163415274,0.19546,102360.0,102350.0,0.195476]
[1738163415475,0.19546,102360.0,102350.0,0.316876]
[1738163415666,0.55626,102360.0,102350.0,0.316876]
[1738163415868,0.19546,102360.0,102350.0,1.576876]
[1738163416066,0.55626,102360.0,102350.0,1.576876]
[1738163416573,0.76469499,102360.0,102350.0,1.576876]
[1738163416768,0.67307322,102360.0,102350.0,1.576876]
[1738163417176,0.67307322,102360.0,102350.0,1.690876]
[1738163417480,0.76469499,102360.0,102350.0,1.690876]
[1738163417978,0.20843499,102360.0,102350.0,1.690876]
[1738163418272,0.40389199,102360.0,102350.0,1.690876]
[1738163418475,0.76469199,102360.0,102350.0,1.690876]
[1738163419069,0.67307022,102360.0,102350.0,1.690876]
[1738163419967,0.556257,102360.0,102350.0,1.690876]
[1738163420164,0.67320806,102370.0,102360.0,0.195457]
[1738163420374,0.11696006,102370.0,102360.0,0.195457]
[1738163420670,0.11696006,102370.0,102360.0,0.28707877]
[1738163420865,0.11696006,102370.0,102360.0,0.195457]
[1738163421776,0.11696006,102370.0,102360.0,1.455457]
[1738163422579,0.11796006,102370.0,102360.0,1.455457]
[1738163423280,0.11696006,102370.0,102360.0,1.455457]
[1738163424078,0.11696006,102370.0,102360.0,1.54707877]
[1738163424273,0.00014684,102370.0,102360.0,1.54707877]
[1738163425176,0.00014684,102370.0,102360.0,1.455457]
[1738163425573,0.00014684,102370.0,102360.0,1.90787877]
[1738163427485,0.00014684,102370.0,102360.0,1.99950054]
[1738163427675,0.00014684,102370.0,102360.0,1.90787877]
[1738163429175,0.00014684,102370.0,102360.0,1.91791353]
[1738163429376,0.00014684,102370.0,102360.0,1.91991353]
[1738163430987,0.00014684,102370.0,102360.0,1.92591353]
[1738163431777,0.26282975,102390.0,102380.0,0.195418]
[1738163432090,0.26282975,102390.0,102380.0,0.64783977]
[1738163432285,0.26282975,102390.0,102380.0,0.98633977]
[1738163433175,0.26282975,102390.0,102380.0,2.24633977]
[1738163433780,0.26282975,102390.0,102380.0,2.60713977]
[1738163434677,0.09062975,102390.0,102380.0,2.69876154]
[1738163434877,0.30426569,102400.0,102380.0,2.41172177]
[1738163435089,0.30426569,102400.0,102390.0,0.64782077]
[1738163436786,0.30526569,102400.0,102390.0,0.64782077]
[1738163436989,0.50064569,102400.0,102390.0,0.28702077]
[1738163437296,0.49964569,102400.0,102390.0,0.28702077]
[1738163437596,0.50064569,102400.0,102390.0,0.28702077]
[1738163437984,0.30526569,102400.0,102390.0,0.28702077]
[1738163438384,0.30826569,102400.0,102390.0,0.64782077]
[1738163438587,0.30826569,102400.0,102390.0,0.65755972]
[1738163438891,0.30826569,102400.0,102390.0,1.91755972]
[1738163439097,0.30826569,102400.0,102390.0,2.00918149]
[1738163439692,0.30549517,102410.0,102390.0,2.11378249]
[1738163439997,0.55271728,102440.0,102430.0,0.195323]
[1738163440202,0.05152,102450.0,102440.0,0.195304]
[1738163440499,0.97293117,102470.0,102440.0,0.195304]
[1738163440500,0.20391377,102470.0,102460.0,0.195266]
[1738163440687,0.20391377,102470.0,102460.0,0.64768777]
[1738163441404,0.26181345,102490.0,102480.0,0.195228]
[1738163441694,0.26181345,102490.0,102480.0,0.73927154]
[1738163442787,0.26181345,102490.0,102480.0,1.10007154]
[1738163443191,0.0374305,102490.0,102480.0,1.40007154]
[1738163443596,10.40170283,102500.0,102480.0,1.20484354]
[1738163443786,10.40170283,102500.0,102490.0,0.64763077]
[1738163444186,10.260792,102500.0,102490.0,0.64763077]
[1738163444695,10.260792,102500.0,102490.0,0.69309561]
[1738163445093,8.90675443,102500.0,102490.0,1.13018222]
[1738163445296,7.43482149,102500.0,102490.0,1.50378758]
[1738163445591,7.17481219,102500.0,102490.0,2.01918758]
[1738163445797,6.95342924,102500.0,102490.0,2.08930758]
[1738163445997,6.92903416,102500.0,102490.0,1.99295473]
[1738163446197,6.92903416,102500.0,102490.0,2.43283473]
[1738163446387,3.92590732,102500.0,102490.0,2.43283473]
[1738163446589,3.92590732,102500.0,102490.0,2.09210097]
[1738163446896,4.11809732,102500.0,102490.0,0.49788661]
[1738163447098,4.11809732,102500.0,102490.0,0.13708661]
[1738163447294,3.92290732,102500.0,102490.0,0.69409561]
[1738163447493,3.92290732,102500.0,102490.0,0.99409561]
[1738163447998,3.91306847,102500.0,102490.0,0.99409561]
[1738163448200,3.91306847,102500.0,102490.0,1.20014082]
[1738163448403,3.91306847,102500.0,102490.0,1.50262237]
[1738163448706,3.87510767,102500.0,102490.0,1.50562237]
[1738163450093,3.62136567,102500.0,102490.0,1.50562237]
[1738163450303,3.39066667,102500.0,102490.0,1.51162237]
[1738163450494,3.39066667,102500.0,102490.0,1.51462237]
[1738163451298,3.39066667,102500.0,102490.0,1.21562237]
[1738163451496,3.39066667,102500.0,102490.0,0.98326082]
[1738163451697,3.39066667,102500.0,102490.0,1.18565509]
[1738163451698,3.21501065,102500.0,102490.0,1.18565509]
[1738163452201,3.19548436,102500.0,102490.0,1.28322082]
[1738163452903,3.19548436,102500.0,102490.0,1.79322082]
[1738163453505,3.19548436,102500.0,102490.0,1.78422082]
[1738163453698,3.19548436,102500.0,102490.0,1.79322082]
[1738163454094,2.99055693,102500.0,102490.0,1.79322082]
[1738163454401,2.99055693,102500.0,102490.0,1.76446381]
[1738163454604,2.99055693,102500.0,102490.0,1.42551643]
[1738163454805,2.99055693,102500.0,102490.0,1.44015643]
[1738163455005,2.99055693,102500.0,102490.0,1.37007643]
[1738163455498,2.99055693,102500.0,102490.0,1.14939122]
[1738163456095,2.69780329,102500.0,102490.0,1.14939122]
[1738163456300,2.69780329,102500.0,102490.0,1.14039122]
[1738163456499,2.89299329,102500.0,102490.0,1.14839122]
[1738163456702,2.89299329,102500.0,102490.0,0.81609561]
[1738163456900,3.00299329,102500.0,102490.0,0.81609561]
[1738163457204,3.36379329,102500.0,102490.0,0.523]
[1738163457401,3.5008799,102500.0,102490.0,0.3508]
[1738163457603,0.195228,102480.0,102470.0,0.23250839]
[1738163457799,0.487908,102480.0,102470.0,0.23250839]
[1738163458214,0.62499461,102480.0,102470.0,0.23250839]
[1738163458501,0.62499461,102480.0,102470.0,0.16014684]
[1738163458502,0.98579461,102480.0,102470.0,0.16014684]
[1738163458704,0.79056661,102480.0,102450.0,1.08778353]
[1738163458902,0.69315261,102460.0,102450.0,0.52195216]
[1738163459204,0.195285,102450.0,102440.0,0.34738635]
[1738163459409,0.195304,102440.0,102430.0,0.40674828]
[1738163459601,0.62507061,102440.0,102430.0,0.40674828]
[1738163459796,0.98587061,102440.0,102430.0,0.40674828]
[1738163460009,0.848784,102440.0,102430.0,0.40674828]
[1738163460507,1.12295722,102440.0,102430.0,1e-08]
[1738163460707,0.98587061,102440.0,102430.0,1e-08]
[1738163460911,0.49788661,102440.0,102420.0,0.69172817]
[1738163461098,0.69320961,102430.0,102420.0,0.69172817]
[1738163461607,0.69320961,102430.0,102420.0,0.00014684]
[1738163461804,0.195361,102410.0,102400.0,0.19684082]
[1738163462305,7.023e-05,102410.0,102400.0,0.69472743]
[1738163462802,7.023e-05,102410.0,102400.0,0.83181404]
[1738163463000,0.195291,102450.0,102400.0,0.8445407]
[1738163463297,8.4e-07,102420.0,102410.0,0.293032]
[1738163463500,0.19673377,102460.0,102450.0,0.195285]
[1738163463710,0.19673377,102460.0,102450.0,0.556085]
[1738163464411,0.19673377,102460.0,102450.0,0.195285]
[1738163464606,0.33382038,102460.0,102450.0,0.195285]
[1738163464912,0.33382038,102460.0,102450.0,0.556085]
[1738163465305,0.33382038,102460.0,102450.0,0.3608]
[1738163465506,0.26057294,102460.0,102450.0,0.3608]
[1738163466009,0.26057294,102460.0,102440.0,0.19544384]
[1738163466010,0.195285,102450.0,102440.0,0.19544384]
[1738163466314,0.195285,102450.0,102440.0,0.55624384]
[1738163466518,0.13708661,102460.0,102440.0,0.36094684]
[1738163466811,0.19540784,102470.0,102450.0,0.556085]
[1738163467015,0.33236361,102460.0,102450.0,0.3608]
[1738163467212,0.195277,102460.0,102450.0,0.556085]
[1738163469110,0.00014684,102470.0,102450.0,0.3608]
[1738163469309,0.19539884,102470.0,102460.0,0.195266]
[1738163469910,0.19539884,102470.0,102460.0,0.556066]
[1738163469911,0.00014684,102470.0,102460.0,0.556066]
[1738163470210,0.00014684,102470.0,102460.0,0.69315261]
[1738163470608,0.00014684,102470.0,102460.0,0.556066]
[1738163471009,0.00014684,102470.0,102460.0,0.69315261]
[1738163471416,0.00014684,102470.0,102460.0,0.69615261]
[1738163471915,0.00014684,102470.0,102460.0,0.80885261]
[1738163472219,0.00114684,102470.0,102460.0,0.81285261]
[1738163472611,0.00014684,102470.0,102460.0,0.80685261]
[1738163472813,0.00114684,102470.0,102460.0,0.81285261]
[1738163473118,0.00114684,102470.0,102460.0,0.81485261]
[1738163474013,0.00114684,102470.0,102460.0,0.81385261]
[1738163474313,0.00014684,102470.0,102460.0,0.81685261]
[1738163474510,0.00114684,102470.0,102460.0,0.81685261]
[1738163476112,0.00114684,102470.0,102460.0,0.96669832]
[1738163476419,2.89299929,102500.0,102490.0,0.195209]
[1738163476613,2.89299929,102500.0,102490.0,0.556009]
[1738163476815,2.69780329,102500.0,102490.0,0.556009]
[1738163477014,2.69780329,102500.0,102490.0,0.69309561]
[1738163478122,2.69780329,102500.0,102490.0,0.80559561]
[1738163479718,2.69880329,102500.0,102490.0,0.81159561]
[1738163481018,2.69880329,102500.0,102490.0,0.81359561]
[1738163481323,2.69780329,102500.0,102490.0,0.80759561]
[1738163481526,2.69780329,102500.0,102490.0,0.81559561]
[1738163482124,2.69780329,102500.0,102490.0,0.3708]
[1738163482125,3.0300799,102500.0,102490.0,0.3708]
[1738163482320,3.3908799,102500.0,102490.0,0.01]
[1738163482822,3.3908799,102500.0,102490.0,0.011]
[1738163483031,3.3909799,102500.0,102490.0,0.011]
[1738163483233,0.195209,102490.0,102480.0,0.00014684]
[1738163483423,0.195209,102490.0,102480.0,0.55617484]
[1738163484129,0.69309561,102490.0,102480.0,0.00014684]
[1738163484314,0.13708661,102490.0,102480.0,0.00014684]
[1738163484517,0.195209,102490.0,102480.0,0.55617484]
[1738163485223,2.70280329,102500.0,102480.0,0.49803345]
[1738163485418,2.89800029,102500.0,102490.0,0.556009]
[1738163485619,2.89400029,102500.0,102490.0,0.556009]
[1738163485920,3.03870915,102500.0,102490.0,0.556009]
[1738163486228,3.03770915,102500.0,102490.0,0.556009]
[1738163486418,2.84251215,102500.0,102490.0,0.556009]
[1738163486614,3.03770215,102500.0,102490.0,0.666609]
[1738163487023,2.84251215,102500.0,102490.0,0.66646389]
[1738163487414,2.84251215,102500.0,102490.0,0.9084505]
[1738163487721,2.84351215,102500.0,102490.0,0.9084505]
[1738163487921,2.84351215,102500.0,102490.0,0.9094505]
[1738163488431,2.63389515,102500.0,102490.0,0.9094505]
[1738163488731,0.101,102500.0,102490.0,1.81322134]
[1738163488929,0.17269515,102530.0,102520.0,0.195152]
[1738163489125,0.17269515,102530.0,102520.0,1.20592876]
[1738163489629,0.17269515,102530.0,102520.0,1.41672876]
[1738163489932,0.17490069,102530.0,102520.0,1.27964215]
[1738163490432,0.17490069,102530.0,102520.0,1.08449015]
[1738163490630,0.37003369,102530.0,102520.0,0.94740354]
[1738163490825,0.37003369,102530.0,102520.0,0.22580354]
[1738163491024,0.37003369,102530.0,102520.0,0.22680354]
[1738163491223,0.37003369,102530.0,102520.0,0.2118]
[1738163491224,0.73083369,102530.0,102520.0,0.2118]
[1738163491834,0.73083369,102530.0,102520.0,0.001]
[1738163491835,0.55813854,102530.0,102520.0,0.001]
[1738163492024,0.69522515,102530.0,102520.0,0.001]
[1738163492224,0.69522515,102530.0,102520.0,0.01594174]
[1738163492524,0.69522515,102530.0,102520.0,0.01694174]
[1738163493125,0.33223861,102520.0,102510.0,8.4e-07]
[1738163493327,0.69313861,102520.0,102510.0,8.4e-07]
[1738163493833,0.99313861,102520.0,102510.0,8.4e-07]
[1738163494029,1.20647076,102520.0,102510.0,8.4e-07]